bitfinex-derivatives/quotes_ETHF0:USTF0_20250830
["timestamp","ask_amount","ask_price","bid_price","bid_amount"]
[1756562669994,0.5059,4358.2,4358.1,0.495]
[1756562670191,0.5059,4358.9,4358.8,0.2038]
[1756562670389,0.5059,4358.9,4358.8,0.729]
[1756562671386,0.1977,4358.9,4358.8,0.729]
[1756562671591,3.2078,4359.1,4358.9,0.2912]
[1756562671592,3.516,4359.1,4358.9,0.2912]
[1756562671893,3.7137,4359.1,4359.0,0.495]
[1756562672084,3.7137,4359.1,4359.0,0.2912]
[1756562672285,3.7137,4359.1,4359.0,0.142]
[1756562672888,3.7137,4359.1,4359.0,0.637]
[1756562675494,3.7137,4359.1,4359.0,0.3458]
[1756562676498,0.5059,4359.1,4359.0,0.3458]
[1756562677296,0.5059,4359.1,4358.7,0.2912]
[1756562677600,0.4959,4359.0,4358.9,0.4796]
[1756562679094,0.4959,4359.0,4358.9,0.234]
[1756562680303,0.4959,4359.0,4358.6,0.2814]
[1756562680504,0.4959,4359.0,4358.9,0.234]
[1756562680906,0.4959,4359.0,4358.9,0.7136]
[1756562681204,0.307,4358.9,4358.6,0.2814]
[1756562681400,0.4959,4358.7,4358.6,0.4796]
[1756562681600,0.4959,4358.7,4358.6,0.7136]
[1756562681795,0.1889,4358.4,4358.3,0.4796]
[1756562682002,0.4959,4358.4,4358.3,0.4796]
[1756562682200,0.4959,4358.4,4358.3,0.7136]
[1756562682503,0.4959,4358.4,4358.3,0.234]
[1756562682699,0.4959,4358.4,4358.3,0.4322]
[1756562682899,0.4959,4358.4,4358.3,0.7136]
[1756562683205,0.4959,4358.1,4358.0,3.2078]
[1756562683400,0.4959,4358.1,4358.0,3.4418]
[1756562683608,0.4959,4358.1,4358.0,3.9214]
[1756562685006,0.4959,4358.1,4358.0,3.6874]
[1756562685211,0.4959,4358.1,4358.0,3.9214]
[1756562686005,3.2078,4359.2,4358.0,3.64]
[1756562686302,0.1889,4358.2,4358.1,0.4796]
[1756562686607,0.4959,4358.2,4358.1,0.4796]
[1756562687104,0.1889,4358.2,4358.1,0.7136]
[1756562687506,0.4959,4358.2,4358.1,0.7136]
[1756562688900,0.307,4358.5,4358.1,0.7136]
[1756562689100,0.307,4359.0,4358.2,0.2814]
[1756562689304,0.1889,4358.3,4358.2,0.4796]
[1756562689505,0.4959,4358.3,4358.2,0.4796]
[1756562689905,0.4959,4358.3,4358.2,0.7136]
[1756562690404,0.4959,4358.3,4358.2,0.234]
[1756562690808,0.4959,4358.1,4358.0,3.2078]
[1756562691003,0.4959,4358.1,4358.0,3.4418]
[1756562694813,0.4959,4358.1,4358.0,0.234]
[1756562699820,0.307,4358.6,4358.1,0.2814]
[1756562700015,0.4959,4358.6,4358.5,0.1982]
[1756562700220,3.2078,4358.7,4358.6,0.2814]
[1756562700518,3.2078,4358.7,4358.6,0.4796]
[1756562701823,3.2078,4359.2,4358.6,0.1982]
[1756562702122,0.1889,4358.8,4358.7,0.4322]
[1756562702315,0.1889,4358.8,4358.7,0.7136]
[1756562702715,0.4959,4358.8,4358.7,0.7136]
[1756562702924,0.307,4358.7,4358.4,3.4892]
[1756562703121,0.4959,4358.5,4358.4,3.2078]
[1756562703316,0.4959,4358.5,4358.4,3.4418]
[1756562703716,0.4959,4358.5,4358.4,0.234]
[1756562703917,0.4959,4358.5,4357.8,3.2078]
[1756562704216,0.4959,4358.0,4357.9,0.7136]
[1756562704815,3.2078,4359.2,4357.9,0.7136]
[1756562705021,0.307,4359.0,4358.0,0.2814]
[1756562705517,0.4959,4359.0,4358.9,0.1982]
[1756562705714,0.4959,4359.0,4358.7,0.2814]
[1756562706412,0.4959,4359.0,4358.2,0.2814]
[1756562706620,0.4959,4359.0,4358.3,0.234]
[1756562707316,0.4959,4359.0,4358.4,0.234]
[1756562707812,0.2023,4358.1,4357.8,3.5144]
[1756562708017,0.2023,4358.1,4357.4,35.10363366]
[1756562708018,0.2023,4357.5,4357.4,33.05]
[1756562708222,0.5022,4357.5,4357.4,33.284]
[1756562709718,0.2999,4357.4,4357.3,3.2078]
[1756562709923,0.5022,4357.4,4357.3,3.4418]
[1756562711115,0.2023,4357.4,4356.7,0.3066]
[1756562711426,0.5022,4356.8,4356.7,0.5129]
[1756562711724,0.5022,4356.8,4356.7,0.7469]
[1756562714218,0.5022,4356.8,4356.7,0.5129]
[1756562714413,0.5022,4356.8,4356.7,0.7469]
[1756562720123,0.5022,4356.8,4356.7,0.5129]
[1756562720318,0.5022,4356.8,4356.7,0.7469]
[1756562721029,0.2999,4357.0,4356.7,0.7469]
[1756562721229,0.2999,4357.0,4356.8,0.3066]
[1756562721530,0.22951001,4357.6,4356.7,0.4403]
[1756562721531,0.5022,4357.6,4357.5,0.5129]
[1756562721729,0.2999,4357.5,4357.2,0.5406]
[1756562722029,0.2023,4357.3,4357.2,0.7469]
[1756562722226,0.5022,4357.3,4357.2,0.7469]
[1756562723325,0.5022,4357.3,4357.2,0.2063]
[1756562723528,0.5022,4357.3,4357.0,0.5406]
[1756562723723,0.2023,4357.1,4357.0,0.7469]
[1756562723924,0.5022,4357.1,4357.0,0.7469]
[1756562732733,0.5022,4357.1,4357.0,0.234]
[1756562732734,0.2023,4357.1,4357.0,0.234]
[1756562732947,0.5022,4357.1,4357.0,0.234]
[1756562733638,0.2023,4356.4,4356.1,0.3066]
[1756562733843,0.5022,4356.1,4356.0,3.7207]
[1756562734037,0.5022,4356.1,4356.0,3.9547]
[1756562734239,0.2023,4355.6,4355.5,0.5129]
[1756562734535,0.5022,4355.6,4355.5,0.7469]
[1756562734932,0.2999,4356.1,4355.5,0.4403]
[1756562735136,0.2023,4355.7,4355.6,0.2063]
[1756562735343,0.5022,4355.7,4355.6,0.5129]
[1756562738338,3.2078,4356.2,4355.6,0.2063]
[1756562738641,3.4,4356.2,4356.1,0.1909]
[1756562739039,0.4786,4356.0,4355.9,0.495]
[1756562739638,3.2078,4356.7,4356.6,0.1909]
[1756562739832,33.06,4358.7,4356.6,0.4249]
[1756562739833,0.2864,4357.1,4356.6,0.4249]
[1756562740132,0.4786,4357.1,4357.0,0.495]
[1756562741237,0.4786,4357.1,4357.0,0.1909]
[1756562741639,0.4786,4357.1,4357.0,0.495]
[1756562742034,0.4786,4357.1,4357.0,0.1909]
[1756562742241,0.4786,4356.5,4356.4,0.729]
[1756562743644,0.2864,4356.8,4356.4,0.729]
[1756562743845,0.1922,4356.6,4356.5,0.495]
[1756562744045,0.4786,4356.6,4356.5,0.495]
[1756562745245,0.4786,4356.9,4356.8,0.1909]
[1756562745435,0.4786,4356.9,4356.8,0.495]
[1756562759459,34.70096868,4358.7,4357.6,0.1909]
[1756562759460,0.2864,4357.7,4357.6,0.1909]
[1756562759657,0.4786,4357.7,4357.6,0.495]
[1756562760157,0.1922,4357.7,4357.6,0.495]
[1756562760462,3.4942,4357.9,4357.8,0.495]
[1756562760758,3.2078,4357.9,4357.8,0.495]
[1756562762257,3.2078,4357.9,4357.8,4.72447]
[1756562762450,3.2078,4357.9,4357.8,4.495]
[1756562762652,0.2864,4358.6,4357.8,4.42037]
[1756562762967,0.4786,4358.6,4358.5,0.495]
[1756562764254,3.6864,4358.6,4358.5,0.495]
[1756562765458,3.2078,4358.6,4358.5,0.495]
[1756562765653,0.2864,4359.2,4358.6,0.3041]
[1756562765860,0.4786,4359.2,4359.1,0.495]
[1756562766055,0.1922,4359.2,4359.1,0.495]
[1756562766251,0.4786,4359.2,4359.1,0.495]
[1756562770259,3.2078,4359.8,4359.1,0.495]
[1756562770467,0.5038,4359.7,4359.6,0.4819]
[1756562772661,0.3046,4360.1,4360.0,0.4819]
[1756562772855,0.5038,4360.1,4360.0,0.4819]
[1756562773761,3.2078,4360.3,4360.1,0.2893]
[1756562773966,3.7116,4360.3,4360.2,0.4819]
[1756562774358,3.2078,4360.3,4360.2,0.4819]
[1756562774764,3.7116,4360.8,4360.7,0.1926]
[1756562775063,3.7116,4360.8,4360.7,0.4819]
[1756562776773,0.5038,4360.8,4360.7,0.4819]
[1756562781176,0.5038,4360.7,4360.6,0.233]
[1756562781768,0.5038,4360.7,4360.6,0.7149]
[1756562783177,0.5038,4360.7,4360.6,0.4819]
[1756562783775,0.5038,4360.7,4360.6,0.1926]
[1756562784477,0.5038,4360.7,4360.6,0.4819]
[1756562787270,0.3046,4361.4,4360.6,0.1926]
[1756562787477,0.5339,4361.4,4360.7,0.2893]
[1756562787781,0.5038,4361.4,4361.3,0.4819]
[1756562795280,0.3046,4361.3,4361.2,0.233]
[1756562795485,0.5038,4360.9,4360.8,0.4819]
[1756562795687,0.5038,4360.9,4360.8,0.7149]
[1756562796792,0.1992,4360.9,4360.8,0.7149]
[1756562797593,0.3046,4361.1,4360.8,0.7149]
[1756562797888,0.3046,4361.1,4361.0,0.1901]
[1756562798094,3.2078,4362.0,4361.0,0.4925]
[1756562798294,0.2939,4361.8,4361.1,0.3024]
[1756562798489,0.2939,4361.6,4361.1,0.3024]
[1756562798689,0.188,4361.2,4361.1,0.4925]
[1756562798893,0.4819,4361.2,4361.1,0.4925]
[1756562805707,1.04559209,4361.2,4361.1,0.4925]
[1756562807505,0.4819,4361.2,4361.1,0.4925]
[1756562808002,1.04563837,4361.2,4361.1,0.4925]
[1756562808203,1.04563837,4361.2,4361.1,0.7255]
[1756562808402,0.4819,4361.2,4361.1,0.7255]
[1756562809112,3.2078,4362.0,4361.2,0.3024]
[1756562809414,0.4819,4361.8,4361.7,0.4925]
[1756562809616,1.0456539,4361.8,4361.7,0.4925]
[1756562809910,1.0456539,4361.8,4361.7,0.1901]
[1756562810512,1.0456539,4361.8,4361.5,0.3024]
[1756562810711,0.5637539,4361.7,4361.2,0.3024]
[1756562811008,3.2078,4362.0,4361.9,0.4925]
[1756562811211,3.2078,4362.0,4361.9,0.7255]
[1756562811406,0.2939,4362.1,4361.9,0.7255]
[1756562811608,4.44155452,4363.2,4362.0,0.3024]
[1756562811806,0.85743285,4363.1,4362.0,0.3024]
[1756562812006,0.56353285,4363.0,4362.0,0.3024]
[1756562812212,0.85743285,4362.9,4362.0,0.3024]
[1756562812508,0.56337932,4362.8,4362.0,0.3024]
[1756562812709,0.2939,4362.6,4362.0,0.3024]
[1756562812906,0.4819,4362.4,4362.0,0.3024]
[1756562813210,0.4819,4362.1,4362.0,0.3024]
[1756562813512,0.4819,4362.1,4362.0,0.4925]
[1756562816510,0.4819,4362.6,4362.5,0.4925]
[1756562818315,0.4819,4362.6,4362.5,0.1901]
[1756562818712,3.2078,4363.2,4362.4,0.5354]
[1756562818713,0.188,4362.7,4362.4,0.5354]
[1756562818911,0.4819,4362.5,4362.4,0.7255]
[1756562819517,0.4819,4362.5,4362.4,0.4925]
[1756562819718,0.4819,4362.5,4362.4,0.7255]
[1756562819918,0.4819,4362.5,4362.4,0.4925]
[1756562820112,0.4819,4362.5,4362.4,0.4231]
[1756562820711,0.188,4362.5,4362.4,0.233]
[1756562821314,0.4819,4362.5,4362.4,0.233]
[1756562821518,0.188,4361.8,4361.7,0.4925]
[1756562821717,0.4819,4361.8,4361.7,0.7255]
[1756562821916,0.4819,4361.8,4361.7,0.95477]
[1756562822113,3.2078,4363.2,4361.7,0.95477]
[1756562822317,3.2078,4363.2,4361.8,0.3024]
[1756562822318,0.2939,4363.1,4361.8,0.3024]
[1756562822614,0.4819,4361.9,4361.8,0.4925]
[1756562822822,0.4819,4361.9,4361.8,0.7255]
[1756562823921,3.2078,4363.2,4361.9,0.4925]
[1756562824116,0.188,4362.0,4361.9,0.4925]
[1756562824323,0.188,4361.7,4361.6,3.3979]
[1756562824527,0.4819,4361.7,4361.6,3.9333]
[1756562826025,0.4819,4361.7,4361.6,3.4408]
[1756562826424,0.4819,4361.7,4361.6,3.2078]
[1756562826624,0.4819,4361.7,4361.6,3.4408]
[1756562829019,0.4819,4361.7,4361.6,3.9466]
[1756562830922,0.4819,4361.7,4361.6,3.4408]
[1756562831324,3.2078,4362.2,4361.1,3.2078]
[1756562831530,0.4931,4361.2,4361.1,3.7136]
[1756562831927,0.4931,4361.2,4361.1,3.9466]
[1756562832227,0.4931,4361.2,4361.1,3.6433]
[1756562832428,0.4931,4361.2,4361.1,3.9466]
[1756562832728,0.2023,4361.2,4361.1,0.233]
[1756562833227,0.4931,4361.2,4361.1,0.4355]
[1756562834227,0.4931,4361.2,4360.6,3.2078]
[1756562834534,0.2023,4360.7,4360.6,3.2078]
[1756562834735,0.4931,4360.7,4360.6,0.233]
[1756562834923,0.4931,4360.7,4360.5,0.3033]
[1756562835230,3.2078,4361.2,4359.8,3.2078]
[1756562835231,0.4931,4360.1,4360.0,33.3343]
[1756562835419,0.4931,4360.1,4360.0,33.5673]
[1756562837729,0.4931,4360.1,4360.0,33.3343]
[1756562838130,0.4931,4360.1,4360.0,33.5673]
[1756562840231,0.4931,4360.1,4360.0,33.3343]
[1756562840427,0.4931,4360.1,4360.0,33.5673]
[1756562840627,0.2908,4360.0,4359.8,3.5111]
[1756562840926,0.2023,4360.0,4359.9,0.233]
[1756562841128,0.2023,4360.0,4359.1,3.5111]
[1756562841434,0.4931,4359.3,4359.2,0.7388]
[1756562842435,0.4931,4359.3,4359.2,0.2025]
[1756562842627,0.4931,4359.2,4359.1,3.2078]
[1756562842826,0.4931,4359.2,4359.1,0.233]
[1756562844329,0.2023,4359.0,4358.9,0.233]
[1756562844529,0.4931,4358.7,4358.6,36.5391]
[1756562844836,0.4931,4358.7,4358.6,36.7721]
[1756562848838,0.4931,4358.8,4358.7,0.5058]
[1756562849334,0.4931,4358.8,4358.7,0.7388]
[1756562849635,0.4931,4358.8,4358.7,0.233]
[1756562850226,0.4931,4358.8,4358.7,0.7388]
[1756562850637,0.4931,4358.8,4358.7,0.5058]
[1756562850837,0.4931,4358.8,4358.7,0.7388]
[1756562851037,0.2908,4359.0,4358.7,0.4355]
[1756562851237,3.2078,4359.1,4359.0,0.2025]
[1756562851438,3.4101,4359.1,4359.0,0.5058]
[1756562851637,0.2023,4359.1,4358.7,0.5363]
[1756562851937,0.4931,4358.8,4358.7,0.4355]
[1756562852339,0.4931,4358.8,4358.7,0.7388]
[1756562852843,0.4931,4358.8,4358.4,0.3033]
[1756562853139,0.4931,4358.1,4358.0,3.7136]
[1756562853344,0.4931,4358.1,4358.0,3.9466]
[1756562854040,0.2023,4358.1,4357.3,3.2078]
[1756562854338,3.2078,4358.6,4357.4,0.4355]
[1756562854543,0.2908,4358.4,4357.5,0.3033]
[1756562854743,0.4931,4357.7,4357.6,0.7388]
[1756562860842,0.4931,4357.7,4357.6,0.5058]
[1756562861050,0.4931,4357.7,4357.6,0.7388]
[1756562861245,0.4931,4357.7,4357.6,0.5058]
[1756562861443,0.4931,4357.7,4357.6,0.7388]
[1756562861849,0.4931,4357.7,4357.6,0.5058]
[1756562862046,0.4931,4357.7,4357.6,0.7388]
[1756562863444,0.4931,4357.7,4357.6,0.5058]
[1756562863647,0.4931,4357.7,4357.6,0.7388]
[1756562864757,0.4931,4357.7,4357.6,0.2025]
[1756562865056,0.197,4357.5,4357.4,0.5228]
[1756562865357,0.4789,4357.4,4357.3,3.7046]
[1756562866453,0.4789,4357.4,4357.3,3.9376]
[1756562868653,0.2819,4357.6,4357.3,3.9376]
[1756562868854,0.22948,4358.0,4357.3,3.6478]
[1756562869051,3.4048,4358.6,4358.5,0.207]
[1756562869262,3.96991496,4358.6,4358.5,0.4968]
[1756562869559,0.2819,4358.5,4357.4,0.2898]
[1756562869855,0.2819,4358.5,4357.6,0.2898]
[1756562870363,3.2078,4358.6,4358.2,0.207]
[1756562870364,0.4789,4358.3,4358.2,0.207]
[1756562870658,0.4789,4358.3,4358.2,0.7298]
[1756562871855,3.4897,4358.6,4358.2,0.44]
[1756562872165,0.56598098,4358.5,4358.4,0.4968]
[1756562872665,0.197,4358.0,4357.9,0.7298]
[1756562872856,0.4789,4358.0,4357.9,0.7298]
[1756562874567,0.4789,4358.0,4357.9,0.4968]
[1756562875959,0.2819,4357.4,4357.2,0.233]
[1756562876162,0.197,4357.3,4357.2,0.7298]
[1756562876464,0.4789,4357.3,4357.2,0.7298]
[1756562876866,0.4789,4357.3,4357.2,0.4968]
[1756562877470,0.4789,4357.2,4357.1,0.7298]
[1756562878469,0.233,4358.6,4356.2,40.9787148]
[1756562878470,0.2819,4357.1,4356.3,3.2078]
[1756562878670,0.2819,4357.4,4356.5,0.2898]
[1756562878870,0.56691048,4357.3,4356.5,0.22952]
[1756562879073,0.4789,4357.1,4356.4,0.2898]
[1756562879362,3.2078,4357.5,4356.5,0.44]
[1756562879363,0.197,4356.6,4356.5,0.44]
[1756562879567,0.4789,4356.6,4356.5,0.44]
[1756562879768,0.4789,4356.6,4356.5,0.7298]
[1756562880367,3.2078,4357.5,4356.5,0.7298]
[1756562880572,0.2819,4357.3,4356.6,0.2898]
[1756562880871,0.79657564,4357.4,4357.1,0.4968]
[1756562880872,1.04595564,4357.2,4357.1,0.4968]
[1756562883670,1.04595564,4357.2,4356.6,0.2898]
[1756562883874,0.197,4356.7,4356.6,0.4968]
[1756562884076,0.4789,4356.7,4356.6,0.4968]
[1756562886077,0.4789,4357.4,4357.3,0.207]
[1756562886377,1.04578587,4357.4,4357.3,0.4968]
[1756562889273,0.4789,4357.4,4357.3,0.4968]
[1756562892375,0.197,4357.4,4356.4,0.3032]
[1756562892680,0.2939,4357.3,4356.6,0.3032]
[1756562892879,0.2066,4356.7,4356.6,0.4973]
[1756562893179,0.2066,4356.5,4356.4,0.3032]
[1756562893375,3.2078,4357.0,4356.4,0.4973]
[1756562893673,0.2066,4356.0,4355.9,0.4973]
[1756562893874,0.5005,4356.0,4355.9,0.4973]
[1756562895275,0.5005,4356.0,4355.9,0.1941]
[1756562896380,0.5005,4356.0,4355.7,0.233]
[1756562896581,0.2939,4355.9,4355.8,0.1941]
[1756562896881,0.5005,4355.9,4355.8,0.4973]
[1756562898682,3.2078,4356.5,4355.3,0.4973]
[1756562898683,0.2066,4355.4,4355.3,0.4973]
[1756562898884,0.5005,4355.4,4355.3,0.7303]
[1756562900688,2.295,4358.6,4354.9,40.98001625]
[1756562900689,0.2066,4355.1,4355.0,0.3032]
[1756562900889,0.5005,4355.1,4355.0,0.4973]
[1756562901080,0.5005,4355.1,4355.0,0.1941]
[1756562901286,0.5005,4355.1,4355.0,0.4271]
[1756562901480,0.5005,4355.1,4355.0,0.4973]
[1756562901685,0.5005,4355.1,4355.0,0.1941]
[1756562901886,0.5005,4355.1,4355.0,0.4973]
[1756562902085,0.5005,4355.1,4355.0,0.1941]
[1756562904685,3.2078,4355.5,4355.0,0.1941]
[1756562904885,0.2066,4355.2,4355.1,0.4973]
[1756562905087,0.5005,4355.2,4355.1,0.7303]
[1756562905585,3.2078,4356.1,4355.1,0.4271]
[1756562905891,0.2939,4356.0,4355.2,0.3032]
[1756562906796,0.5005,4355.3,4355.2,0.4973]
[1756562907086,0.5005,4355.3,4355.2,0.7303]
[1756562907292,0.5005,4355.3,4355.2,0.4973]
[1756562907484,0.5005,4355.3,4355.2,0.7303]
[1756562907690,0.5005,4355.3,4355.2,0.4973]
[1756562907889,0.5005,4355.3,4355.2,0.7303]
[1756562908389,0.5005,4355.3,4355.2,0.4973]
[1756562911893,0.5005,4355.3,4355.1,0.233]
[1756562912699,0.5005,4355.3,4354.9,0.3032]
[1756562913004,0.5005,4355.3,4355.1,0.3032]
[1756562913598,0.5005,4355.3,4355.2,0.4973]
[1756562915600,0.5005,4355.3,4355.2,0.1941]
[1756562916807,0.5005,4355.3,4355.1,0.233]
[1756562917295,0.2066,4355.3,4355.2,0.5036]
[1756562917798,0.5155,4355.3,4355.2,0.5036]
[1756562923912,0.5155,4355.3,4355.1,0.233]
[1756562924510,0.2066,4355.3,4355.1,0.5425]
[1756562924707,0.3089,4355.2,4355.1,0.5425]
[1756562924908,0.5044,4355.2,4355.1,0.5425]
[1756562925614,3.2078,4356.1,4355.1,0.233]
[1756562925907,0.1955,4355.2,4355.1,0.233]
[1756562926107,0.5044,4355.2,4355.1,0.233]
[1756562926607,0.5044,4355.2,4354.8,0.3095]
[1756562926911,0.5044,4355.1,4355.0,0.4969]
[1756562928020,0.1955,4355.1,4354.7,3.5173]
[1756562928209,0.1955,4354.9,4354.8,0.233]
[1756562928413,0.5044,4354.9,4354.8,0.7299]
[1756562928908,0.1955,4354.9,4354.7,3.2078]
[1756562929109,0.5044,4354.8,4354.7,3.9377]
[1756562929311,0.5044,4354.8,4354.3,5.308]
[1756562929312,0.5044,4354.8,4354.2,2.36313366]
[1756562929611,0.5044,4354.2,4354.1,33.70714634]
[1756562930016,0.5044,4354.2,4354.1,33.39764634]
[1756562930415,0.5044,4354.2,4354.1,33.70714634]
[1756562930615,0.5044,4354.2,4354.1,0.64814634]
[1756562930912,0.5044,4354.2,4354.1,0.10564634]
[1756562935414,0.5044,4354.2,4354.1,0.60254634]
[1756562936223,0.5044,4354.2,4354.1,0.10564634]
[1756562939117,0.5044,4354.2,4354.1,0.29304634]
[1756562939321,0.5044,4354.2,4354.1,0.60254634]
[1756562940825,0.3089,4354.9,4354.2,0.3095]
[1756562941626,0.5044,4354.3,4354.2,0.4969]
[1756562942526,0.5044,4354.3,4354.1,0.10564634]
[1756562943635,0.1955,4354.3,4354.1,0.41514634]
[1756562943836,0.5044,4354.2,4354.1,0.60254634]
[1756562944238,0.3089,4354.9,4354.2,0.3095]
[1756562945140,0.1955,4354.3,4354.2,0.4969]
[1756562945329,0.5044,4354.3,4354.2,0.7299]
[1756562946538,0.3089,4354.9,4354.3,0.3095]
[1756562946734,3.5167,4355.0,4354.8,0.1874]
[1756562946936,3.5167,4355.0,4354.9,0.4969]
[1756562947143,0.3089,4355.0,4354.9,0.7299]
[1756562947435,3.2078,4355.5,4354.9,0.4204]
[1756562947642,3.3976,4355.5,4355.4,0.1912]
[1756562947939,3.6788,4355.5,4355.4,0.4768]
[1756562952247,0.471,4355.5,4355.4,0.1912]
[1756562953242,0.471,4355.5,4355.1,0.2856]
[1756562953449,0.471,4355.5,4354.9,0.233]
[1756562953644,0.471,4355.5,4355.0,0.2856]
[1756562953843,0.471,4355.5,4354.9,0.233]
[1756562954347,0.471,4355.5,4355.0,0.2856]
[1756562954547,0.471,4355.5,4355.4,0.1912]
[1756562955041,0.471,4355.5,4355.4,0.4768]
[1756562959144,0.471,4355.5,4354.9,0.233]
[1756562959449,0.471,4355.5,4355.0,0.2856]
[1756562959650,0.471,4355.5,4354.9,0.233]
[1756562960348,0.1898,4355.5,4354.9,0.5186]
[1756562960550,0.1898,4355.0,4354.9,0.4242]
[1756562960747,0.471,4355.0,4354.9,0.7098]
[1756562965550,0.2812,4355.0,4354.9,0.7098]
[1756562966049,0.471,4355.0,4354.9,0.7098]
[1756562966251,0.471,4355.0,4354.9,0.4768]
[1756562966445,0.471,4355.0,4354.9,0.7098]
[1756562966852,0.471,4355.0,4354.9,0.4768]
[1756562967051,0.471,4355.0,4354.9,0.7098]
[1756562969648,0.471,4355.9,4355.8,0.1912]
[1756562969857,0.471,4355.9,4355.8,0.7098]
[1756562970549,0.471,4356.5,4356.4,0.1912]
[1756562970754,0.471,4356.5,4356.4,0.7098]
[1756562973850,0.2812,4357.0,4356.9,0.1912]
[1756562974057,0.471,4357.0,4356.9,0.7098]
[1756562987861,0.471,4357.0,4356.8,3.2078]
[1756562988058,0.4929,4356.9,4356.8,3.4408]
[1756562988765,0.4929,4356.9,4356.8,3.6478]
[1756562988963,0.4929,4356.9,4356.8,3.9391]
[1756562989366,0.4929,4356.9,4356.8,3.2078]
[1756562989664,0.4929,4356.9,3613.8,1.0656101]
[1756562989665,0.4929,4356.0,4355.4,3.4991]
[1756562989862,0.1893,4355.5,4355.4,3.4408]
[1756562990068,0.1893,4355.5,4355.4,0.233]
[1756562990069,0.4929,4355.5,4355.4,0.233]
[1756562990365,0.4929,4355.0,4354.9,3.2078]
[1756562990565,0.4929,4355.0,4354.6,0.233]
[1756562990566,0.4929,4355.0,4354.7,0.2913]
[1756562991060,0.1893,4355.0,4354.3,3.2078]
[1756562991266,0.4929,4354.6,4354.5,0.233]
[1756562992561,0.4929,4354.6,4354.3,3.2078]
[1756562992864,0.4929,4354.4,4354.2,0.233]
[1756562993759,0.4929,4354.4,4354.1,0.10564634]
[1756562993969,3.7007,4354.4,4354.1,0.10564634]
[1756563001066,3.3971,4354.4,4354.3,0.207]
[1756563001270,3.3971,4354.4,4354.3,0.4983]
[1756563001768,3.2078,4354.4,4354.3,0.4983]
[1756563002070,3.2078,4354.4,4354.3,4.4983]
[1756563002470,0.4929,4354.8,4354.7,0.207]
[1756563002667,0.4929,4354.8,4354.1,0.10564634]
[1756563002965,0.4929,4354.2,4354.1,0.60394634]
[1756563003165,0.4929,4354.2,4354.1,0.31264634]
[1756563003571,0.4929,4354.2,4354.1,0.60394634]
[1756563005272,0.3036,4354.8,4354.2,0.2913]
[1756563005567,0.1893,4354.3,4354.2,0.4983]
[1756563005770,0.4929,4354.3,4354.2,0.4983]
[1756563009279,0.4929,4354.3,4354.2,0.207]
[1756563009479,0.4929,4354.3,4354.1,0.10564634]
[1756563010479,0.4929,4354.3,4354.1,0.40594634]
[1756563010676,0.5021,4354.2,4354.1,0.59924634]
[1756563011576,0.5021,4354.2,4354.1,0.10564634]
[1756563011770,4.205,4354.2,4352.9,3.5081]
[1756563011974,0.205,4353.0,4352.9,3.7014]
[1756563012175,0.5021,4353.0,4352.9,3.9344]
[1756563012467,3.2078,4353.9,4352.9,3.6341]
[1756563012676,0.2971,4353.8,4353.0,0.3003]
[1756563013380,0.205,4353.2,4353.1,0.4263]
[1756563013576,0.5021,4353.2,4353.1,0.7266]
[1756563013880,0.5021,4353.2,4353.1,0.4936]
[1756563014078,0.5021,4353.2,4353.1,0.7266]
[1756563015174,0.205,4353.2,4352.9,0.3003]
[1756563015376,0.2971,4352.9,4352.6,0.233]
[1756563015678,0.5021,4352.9,4352.8,0.4936]
[1756563016279,0.5021,4352.9,4352.4,3.5081]
[1756563016475,0.205,4352.6,4352.5,0.7266]
[1756563016776,0.5021,4352.6,4352.5,0.1933]
[1756563017077,0.5021,4352.4,4352.3,0.7266]
[1756563017581,0.5021,4352.4,4352.1,0.233]
[1756563017778,0.205,4351.9,4351.8,3.7014]
[1756563017983,0.5021,4351.9,4351.8,3.9344]
[1756563018385,0.5021,4351.9,4351.8,3.2078]
[1756563018580,0.5021,4351.9,4351.4,0.3003]
[1756563018878,0.2971,4351.4,4351.3,3.2078]
[1756563019076,0.5021,4351.4,4351.3,3.2078]
[1756563019278,3.7099,4351.4,4351.0,0.233]
[1756563019689,3.7099,4351.4,4351.0,0.5333]
[1756563019877,0.5021,4351.1,4351.0,0.7266]
[1756563020187,0.5021,4351.1,4351.0,0.4936]
[1756563023185,0.205,4351.1,4351.0,0.4936]
[1756563024784,0.5021,4351.1,4351.0,0.4936]
[1756563027486,0.205,4351.1,4351.0,0.4936]
[1756563027787,0.5021,4351.2,4351.0,0.3003]
[1756563028079,0.5021,4351.1,4351.0,0.4936]
[1756563029681,0.2971,4352.3,4351.2,0.1933]
[1756563029881,0.5021,4352.3,4352.2,0.4936]
[1756563030285,0.5021,4352.3,4352.0,0.233]
[1756563030489,0.2971,4352.2,4352.0,0.5333]
[1756563030786,0.5021,4352.1,4352.0,0.7266]
[1756563031184,0.2971,4352.3,4352.1,0.3003]
[1756563031380,3.2078,4352.4,4352.3,0.4936]
[1756563033785,3.2078,4352.4,4352.0,0.233]
[1756563033786,0.5021,4352.4,4352.1,0.3003]
[1756563034088,0.5021,4352.3,4352.2,0.7266]
[1756563034684,3.2078,4352.9,4352.3,0.3003]
[1756563034885,3.2078,4352.9,4352.8,0.4936]